bitfinex/quotes_ETHUSD_20251009
["timestamp","ask_amount","ask_price","bid_price","bid_amount"]
[1760013561253,2.27965663,4399.9,4399.5,0.6336]
[1760013561463,2.27283607,4399.8,4399.7,0.6336]
[1760013561674,2.27283058,4399.8,4399.7,7.1306]
[1760013561823,0.00687274,4399.9,4399.7,7.1306]
[1760013562160,2.27965166,4399.9,4399.8,0.0227283]
[1760013562322,2.27283058,4399.8,4399.0,0.6336]
[1760013562650,0.00687274,4399.9,4399.5,0.6336]
[1760013562866,0.00687274,4399.9,4399.7,0.6336]
[1760013563174,0.00687274,4399.9,4399.7,0.65632882]
[1760013563175,2.27283058,4399.8,4399.7,0.65632882]
[1760013563369,0.00687274,4399.9,4399.5,0.6336]
[1760013563536,2.27283058,4399.8,4399.7,7.1286]
[1760013563743,2.27965166,4399.9,4399.8,0.6336]
[1760013564279,0.00687274,4399.9,4399.8,0.6563283]
[1760013564981,0.00687274,4399.9,4399.8,0.9433283]
[1760013565710,0.00687274,4399.9,4399.8,0.6336]
[1760013565896,0.00887274,4399.9,4399.8,0.6336]
[1760013566038,0.00887274,4399.9,4399.8,2.02352]
[1760013566339,0.00887274,4399.9,4399.8,8.52252]
[1760013566538,0.00887274,4399.9,4399.8,20.34452]
[1760013566771,2.27242721,4400.6,4399.8,1.90992]
[1760013566973,2.27238671,4400.7,4400.0,0.6336]
[1760013567159,2.27238671,4400.7,4399.9,18.32]
[1760013567160,0.002,4400.8,4400.2,0.6336]
[1760013567360,0.002,4400.8,4400.4,0.6336]
[1760013567560,0.002,4400.8,4400.6,0.6336]
[1760013567561,2.27240504,4400.7,4400.6,0.6336]
[1760013567763,0.002,4400.8,4400.6,0.6336]
[1760013567946,2.27432268,4400.8,4400.6,0.6336]
[1760013568145,2.27432268,4400.8,4400.5,18.319]
[1760013568146,0.002,4400.8,4400.7,9.5046]
[1760013568379,2.27431412,4400.8,4400.7,0.6336]
[1760013568536,2.27431412,4400.8,4400.7,1.7396]
[1760013568739,0.002,4400.8,4400.7,4.1036]
[1760013568992,0.002,4400.8,4400.7,9.5046]
[1760013569379,0.48786512,4400.8,4400.7,9.5046]
[1760013569752,2.76017924,4400.8,4400.7,9.5046]
[1760013569938,2.76017924,4400.8,4400.7,0.6336]
[1760013570264,3.32492707,4400.8,4400.7,3.9706]
[1760013570462,3.32492707,4400.8,4400.7,7.1426]
[1760013570772,3.32492707,4400.8,4400.7,9.5066]
[1760013571572,3.32492707,4400.8,4400.7,0.6336]
[1760013571773,3.32492707,4400.8,4400.7,9.5056]
[1760013572476,3.32492707,4400.8,4400.7,9.5046]
[1760013572646,2.76017924,4400.8,4400.7,9.5046]
[1760013573293,2.76017924,4400.8,4400.7,0.6336]
[1760013573294,3.22327924,4400.8,4400.7,0.6336]
[1760013573508,3.82835262,4400.8,4400.7,3.6946]
[1760013573662,3.82835262,4400.8,4400.7,0.6336]
[1760013574005,3.82835262,4400.8,4399.4,0.1804]
[1760013574006,2.27294806,4399.6,4399.4,0.1804]
[1760013574201,2.27294806,4399.6,4399.5,12.417]
[1760013574399,2.27293481,4399.6,4399.5,6.506]
[1760013574608,0.50525998,4400.5,4399.5,0.287]
[1760013574902,0.0012,4400.8,4399.5,0.287]
[1760013574903,0.48806296,4400.4,4399.8,0.6336]
[1760013575086,2.27240848,4400.7,4399.9,0.62672778]
[1760013575395,0.48800936,4400.6,4400.1,0.6336]
[1760013575589,2.27242354,4400.6,4400.3,0.6336]
[1760013575796,0.0012,4400.8,4400.5,0.6336]
[1760013575999,2.27241739,4400.6,4400.5,0.6336]
[1760013576196,2.76044752,4400.6,4400.5,0.6336]
[1760013576692,2.76044752,4400.6,4400.5,9.5086]
[1760013576894,2.76044752,4400.6,4400.5,7.1456]
[1760013577087,2.76044752,4400.6,4400.5,0.6336]
[1760013577280,3.32584907,4400.6,4400.5,9.5086]
[1760013577498,2.76044752,4400.6,4400.5,0.6336]
[1760013577670,2.76044752,4400.6,4400.5,9.5076]
[1760013577990,2.76044752,4400.6,4400.5,9.5086]
[1760013578495,2.76044752,4400.6,4400.5,0.6336]
[1760013578699,3.24154454,4400.6,4400.5,0.6336]
[1760013578995,3.39127368,4400.6,4400.5,3.8956]
[1760013579170,0.48815441,4400.6,4400.5,4.1826]
[1760013579696,0.48815441,4400.6,4400.5,9.53232469]
[1760013579866,0.48815441,4400.6,4400.5,9.5096]
[1760013580192,2.7605718,4400.6,4400.5,9.5096]
[1760013580799,2.7605718,4400.6,4400.5,0.6336]
[1760013581003,2.2727963,4399.9,4399.0,0.1804]
[1760013581185,2.2727963,4399.9,4399.8,0.1136]
[1760013581497,2.27267562,4400.1,4399.9,0.6336]
[1760013581798,2.27267562,4400.1,4400.0,3.712]
[1760013582026,2.76082098,4400.1,4400.0,4.3456]
[1760013582191,2.76082098,4400.1,4400.0,3.712]
[1760013582765,2.76082098,4400.1,4400.0,0.6336]
[1760013582965,2.76082098,4400.1,4398.6,2.27341391]
[1760013582966,0.50534238,4400.1,4399.2,9.455]
[1760013583172,0.4639,4400.6,4399.4,0.6336]
[1760013583173,0.61019302,4400.6,4399.4,0.6336]
[1760013583383,2.2726235,4400.3,4400.1,0.6336]
[1760013583571,2.2724972,4400.5,4400.3,0.6336]
[1760013583792,0.48817919,4400.4,4400.3,0.6336]
[1760013583966,0.48817919,4400.4,4399.1,0.32861731]
[1760013584167,0.0012,4400.8,4399.5,2.5536]
[1760013584391,2.27258613,4400.3,4400.2,0.6336]
[1760013584679,2.7608169,4400.3,4400.2,9.5136]
[1760013585293,2.7608169,4400.3,4400.2,0.6336]
[1760013585609,2.7608169,4400.3,4400.2,9.5136]
[1760013586503,2.2727068,4400.1,4399.5,9.455]
[1760013586705,2.27298556,4399.5,4399.4,0.1136]
[1760013586903,2.27318089,4399.2,4399.1,9.455]
[1760013587104,2.27318089,4399.2,4399.1,13.1566]
[1760013587269,2.27318089,4399.2,4399.1,0.1136]
[1760013587474,2.27318089,4399.2,4399.1,2.87]
[1760013587675,0.01719702,4399.3,4398.1,0.01]
[1760013587910,2.27332613,4398.9,4398.4,0.1136]
[1760013588074,2.27325108,4399.0,4398.5,1.00793169]
[1760013588307,1.79795393,4400.3,4398.7,0.6336]
[1760013588308,0.61102263,4399.8,4398.7,0.6336]
[1760013588511,2.2732348,4399.1,4399.0,0.6336]
[1760013589048,0.48900368,4399.1,4399.0,3.572]
[1760013589251,0.48900368,4399.1,4398.7,0.1136]
[1760013589460,3.21557269,4399.0,4398.1,9.465]
[1760013589663,2.27362285,4398.3,4398.2,0.1136]
[1760013589812,2.27362285,4398.3,4398.2,2.8406]
[1760013590007,2.27362285,4398.3,4398.2,0.1136]
[1760013590213,0.4361,4399.0,4398.2,2.487]
[1760013590514,2.27360179,4398.4,4398.3,0.02273605]
[1760013590735,2.27360179,4398.4,4398.3,0.6336]
[1760013590933,2.88410233,4399.4,4398.3,0.6336]
[1760013591138,2.27355401,4398.4,4398.3,0.6336]
[1760013591513,2.27355401,4398.4,4398.2,2.50973657]
[1760013591514,2.27345441,4398.6,4398.1,0.01]
[1760013591712,0.48906377,4399.0,4398.2,2.633]
[1760013591915,0.48906377,4399.2,4398.3,0.94333605]
[1760013592171,2.27303811,4399.4,4398.5,0.6336]
[1760013592347,0.01719702,4399.6,4398.6,0.0227345]
[1760013592517,0.48906377,4399.7,4398.8,0.6336]
[1760013592713,2.27316322,4399.2,4399.0,0.6336]
[1760013593056,2.2730889,4399.3,4399.2,0.6336]
[1760013593267,2.2730889,4399.3,4399.2,9.5196]
[1760013593268,2.29028592,4399.3,4399.2,9.5196]
[1760013593427,2.2730889,4399.3,4399.2,9.5196]
[1760013595750,2.27326607,4399.0,4398.9,0.6336]
[1760013596051,2.27326607,4399.0,4398.9,7.1556]
[1760013596225,2.27320675,4399.1,4399.0,0.6336]
[1760013596423,2.2731644,4399.2,4399.0,0.6336]
[1760013597138,2.2731644,4399.2,4399.0,0.94333243]
[1760013597339,2.27319224,4399.1,4399.0,0.65633243]
[1760013597538,2.27319224,4399.1,4399.0,9.5186]
[1760013597926,2.27319224,4399.1,4399.0,0.6336]
[1760013598128,2.27319224,4399.1,4399.0,9.5186]
[1760013598840,2.27319224,4399.1,4399.0,9.5176]
[1760013599748,2.27319224,4399.1,4399.0,0.6336]
[1760013599956,2.2738125,4397.9,4397.8,0.001]
[1760013600251,2.27373751,4398.1,4397.8,0.014]
[1760013600252,0.01639702,4398.0,4397.8,0.014]
[1760013600459,2.27372068,4398.1,4397.8,0.014]
[1760013600460,0.1136,4398.1,4397.8,0.014]
[1760013600948,0.61102263,4399.6,4397.8,0.014]
[1760013601153,2.27339893,4398.8,4398.7,0.7472]
[1760013601354,2.27339893,4398.8,4398.7,5.2832]
[1760013601520,2.3866322,4399.5,4398.7,5.2832]
[1760013601521,2.27319505,4399.1,4398.8,0.6336]
[1760013601847,2.27319505,4399.1,4399.0,0.6336]
[1760013602452,2.27328421,4399.0,4398.8,0.6336]
[1760013602651,2.27329559,4398.9,4398.8,0.6336]
[1760013603554,2.27329559,4398.9,4398.8,9.5146]
[1760013603755,2.27329559,4398.9,4398.8,7.1516]
[1760013604067,2.27329559,4398.9,4398.8,9.5156]
[1760013604353,0.1136,4399.5,4398.8,9.5156]
[1760013604558,2.38658875,4399.5,4398.8,9.5156]
[1760013604723,2.27316674,4399.2,4398.8,9.5156]
[1760013604919,2.27328503,4399.0,4398.8,9.5156]
[1760013605123,2.27316674,4399.2,4398.8,9.5156]
[1760013605459,2.27319224,4399.1,4398.8,9.5156]
[1760013605752,2.2732844,4399.0,4398.8,9.5156]
[1760013606259,0.12999702,4399.5,4398.8,0.6336]
[1760013606428,2.27329559,4398.9,4398.8,0.6336]
[1760013606623,2.27303723,4399.4,4398.8,0.6336]
[1760013606624,0.1136,4399.5,4398.8,3.8606]
[1760013606849,0.1136,4399.5,4398.9,0.02273295]
[1760013607089,2.27326433,4399.0,4398.9,0.02273295]
[1760013607435,2.27326433,4399.0,4398.8,3.8606]
[1760013607436,2.27329559,4398.9,4398.8,0.6336]
[1760013607636,2.27329559,4398.9,4398.8,1.5676]
[1760013607842,0.4361,4400.0,4398.8,3.9316]
[1760013608043,2.27329559,4398.9,4398.8,3.9316]
[1760013609038,2.27329559,4398.9,4398.5,0.001]
[1760013609237,2.27329559,4398.9,4398.8,9.5106]
[1760013609828,2.27329559,4398.9,4398.8,7.1456]
[1760013610460,2.27322401,4399.1,4398.9,0.6336]
[1760013610461,2.27322916,4399.1,4398.9,0.6336]
[1760013610667,2.27314608,4399.2,4398.9,0.9206]
[1760013610881,2.27324391,4399.0,4398.9,0.6336]
[1760013611086,2.27324391,4399.0,4398.9,9.5096]
[1760013612348,2.27324391,4399.0,4398.9,0.6336]
[1760013612549,2.70934391,4399.0,4398.9,0.6336]
[1760013612767,2.70934391,4399.0,4398.9,1.4006]
[1760013613164,2.27324391,4399.0,4398.9,1.4006]
[1760013613573,2.70644391,4399.0,4398.9,1.4006]
[1760013613882,2.70644391,4399.0,4398.9,0.6336]
[1760013614181,2.70644391,4399.0,4398.9,4.1316]
[1760013614608,2.27324391,4399.0,4398.9,4.1316]
[1760013615165,2.70644391,4399.0,4398.9,0.6336]
[1760013615561,2.70644391,4399.0,4398.5,0.001]
[1760013615562,2.27345064,4398.6,4398.5,0.001]
[1760013615985,2.72304766,4398.6,4398.5,0.001]
[1760013616489,5.74420378,4398.6,4398.5,0.001]
[1760013616689,5.11678413,4398.6,4398.5,0.001]
[1760013616863,5.93388545,4398.6,4398.5,0.001]
[1760013617068,6.45801888,4398.6,4398.5,0.001]
[1760013617367,5.64091756,4398.6,4398.5,0.001]
[1760013618804,2.2738125,4397.9,4397.8,0.001]
[1760013619206,4.6270125,4397.9,4397.8,0.001]
[1760013619383,4.8529125,4397.9,4397.8,0.001]
[1760013619606,5.35251387,4397.9,4397.8,0.001]
[1760013619892,5.84177487,4397.9,4397.8,0.001]
[1760013621813,2.0336,4397.8,4395.2,0.287]
[1760013621978,2.0336,4397.8,4397.1,1e-08]
[1760013621979,2.27396761,4397.6,4397.1,1e-08]
[1760013622174,0.01639702,4397.5,4397.1,1e-08]
[1760013622381,2.27412275,4397.3,4397.1,1e-08]
[1760013622719,4.21057149,4397.2,4397.1,1e-08]
[1760013622925,4.64377149,4397.2,4397.1,1e-08]
[1760013623230,5.11567445,4397.2,4397.1,1e-08]
[1760013623726,11.13537447,4397.2,4397.1,1e-08]
[1760013623923,11.63497584,4397.2,4397.1,1e-08]
[1760013624219,12.12278595,4397.2,4397.1,1e-08]
[1760013625099,1.92,4397.0,4395.1,0.01]
[1760013625394,9.84861148,4397.2,4395.1,0.01]
[1760013625395,2.27520931,4395.2,4395.1,0.01]
[1760013626218,2.70840931,4395.2,4395.1,0.01]
[1760013626424,2.27505403,4395.5,4395.1,0.01]
[1760013626624,2.29145105,4395.5,4395.1,0.01]
[1760013626835,2.27518495,4395.3,4395.1,0.01]
[1760013627341,2.70799017,4396.1,4395.1,0.01]
[1760013627342,0.01639702,4395.9,4395.1,0.01]
[1760013627709,2.27520931,4395.2,4395.1,0.01]
[1760013627907,2.70840931,4395.2,4395.1,0.01]
[1760013628108,2.27520931,4395.2,4395.1,0.01]
[1760013629456,2.70840931,4395.2,4395.1,0.01]
[1760013630339,2.27505615,4395.5,4395.1,0.01]
[1760013630542,0.4332,4396.0,4395.1,0.01]
[1760013630840,0.50229503,4396.9,4395.3,0.6336]
[1760013630841,0.4332,4396.5,4395.3,0.6336]
[1760013631010,2.27483316,4396.0,4395.5,0.6336]
[1760013631209,2.27487204,4395.9,4395.5,0.6336]
[1760013631604,0.4332,4396.5,4395.5,0.6336]
[1760013631809,2.27488566,4395.9,4395.5,0.6336]
[1760013632036,0.01639702,4395.8,4395.5,0.6336]
[1760013632244,2.27495051,4395.7,4395.5,0.6336]
[1760013632609,2.27500227,4395.6,4395.5,0.6336]
[1760013633247,2.29139929,4395.6,4395.5,0.6336]
[1760013633619,2.72459929,4395.6,4395.5,0.6336]
[1760013634130,2.72459929,4395.6,4395.2,6.51]
[1760013634131,0.4332,4395.6,4395.2,6.51]
[1760013634325,0.44959702,4395.5,4395.2,0.6336]
[1760013634648,2.27515755,4395.3,4395.2,0.6336]
[1760013634850,0.01639702,4395.9,4395.3,0.6336]
[1760013635032,0.2267,4397.1,4395.5,0.6336]
[1760013635033,2.27479526,4396.0,4395.5,0.6336]
[1760013635239,2.27497045,4395.7,4395.5,0.6336]
[1760013635436,0.12999702,4395.9,4395.5,0.6336]
[1760013635747,0.1136,4395.9,4395.5,0.65635054]
[1760013636148,2.38844766,4395.9,4395.5,0.65635054]
[1760013636356,2.27461197,4396.4,4395.7,0.6336]
[1760013636550,2.38821197,4396.4,4395.8,0.02274898]
[1760013636911,2.27446718,4396.7,4396.0,0.1136]
[1760013637135,2.38806718,4396.7,4396.1,7.2482]
[1760013637337,2.38806718,4396.7,4396.2,0.02274691]
[1760013637527,2.27449856,4396.6,4396.3,0.6336]
[1760013638050,2.27454886,4396.5,4396.3,0.6336]
[1760013638450,2.27413942,4397.3,4396.3,0.6336]
[1760013638451,2.72418531,4396.4,4396.3,0.6336]
[1760013638752,2.72418531,4396.4,4396.2,0.6336]
[1760013638753,2.38824003,4396.3,4396.2,0.6336]
[1760013639250,0.1136,4396.3,4396.2,0.6336]
[1760013639564,0.1136,4396.7,4396.2,1.60710691]
[1760013639718,0.1136,4396.7,4396.2,1.71370691]
[1760013640130,2.38803877,4396.7,4396.2,1.71370691]
[1760013640845,2.27454068,4396.5,4396.2,1.71370691]
[1760013641058,2.27459432,4396.4,4396.2,1.58436]
[1760013641244,2.27454126,4396.5,4396.2,0.6336]
[1760013642152,0.1136,4396.7,4396.2,0.76294691]
[1760013642338,0.1136,4396.7,4396.4,0.6336]
[1760013642535,0.01839702,4397.5,4396.5,0.02274536]
[1760013642739,2.27427237,4397.1,4396.6,0.6336]
[1760013642939,2.27427237,4397.1,4396.8,0.6336]
[1760013643142,2.27427026,4397.1,4396.8,0.6336]
[1760013643336,0.01639702,4397.2,4396.8,0.6336]
[1760013643538,2.27422619,4397.1,4396.8,0.6336]
[1760013643739,0.48609702,4397.2,4396.8,0.6336]
[1760013643740,0.01639702,4397.2,4396.8,0.6336]
[1760013643969,2.27412069,4397.4,4396.5,0.1136]
[1760013643970,2.27448482,4396.6,4396.5,1.2626]
[1760013644720,0.8485143,4397.9,4396.6,0.6336]
[1760013644828,0.1136,4397.4,4396.7,0.02274433]
[1760013645026,2.27398685,4397.6,4397.0,0.6336]
[1760013645234,2.38758685,4397.6,4397.2,0.6336]
[1760013645636,0.48810808,4397.8,4397.4,0.6336]
[1760013645956,0.1236,4397.9,4397.4,0.7472]
[1760013645957,0.01,4397.9,4397.4,0.7472]
[1760013646160,0.01,4397.9,4397.4,1.0342]
[1760013646362,0.01,4397.9,4397.4,1.95710217]
[1760013647354,0.01,4397.9,4397.4,4.23117321]
[1760013647881,0.01,4397.9,4397.7,2.9075151]
[1760013648181,0.01,4397.9,4397.8,9.08133864]
[1760013648336,0.01,4397.9,4397.8,10.22283186]
[1760013648532,0.01,4397.9,4397.8,10.50983186]
[1760013648753,0.01,4397.9,4397.8,12.78369606]
[1760013648967,0.01,4397.9,4397.8,10.50983186]
[1760013649155,0.01,4397.9,4397.8,12.78369606]
[1760013649537,0.01,4397.9,4397.8,3.71783186]
[1760013649770,0.01,4397.9,4397.8,8.7796]
[1760013650132,0.01,4397.9,4397.8,2.5536]
[1760013650364,0.01,4397.9,4397.8,11.4236]
[1760013651166,2.28334601,4398.9,4397.9,0.6336]
[1760013651366,2.28334601,4398.9,4398.1,0.6336]
[1760013651367,0.01639702,4398.8,4398.1,0.6336]
[1760013651567,2.27340999,4398.7,4398.0,0.6336]
[1760013651770,2.27340342,4398.7,4398.0,2.90734798]
[1760013652072,2.27340342,4398.7,4397.9,2.90739755]
[1760013652235,0.01639702,4398.6,4397.9,0.6336]
[1760013652439,2.28984955,4398.6,4397.9,0.6336]
[1760013652758,2.28985008,4398.6,4397.9,2.03204548]
[1760013653553,0.01639702,4398.6,4397.9,4.30584111]
[1760013653743,2.27344053,4398.7,4397.9,4.30584111]
[1760013653945,0.01639702,4398.6,4397.9,0.6336]
[1760013654161,0.01639702,4398.7,4397.9,2.90740322]
[1760013654345,0.4659,4398.9,4397.9,2.90740322]
[1760013654564,0.4659,4398.9,4398.1,0.6336]
[1760013654778,0.4659,4398.9,4398.0,0.6336]
[1760013654937,2.2833044,4398.9,4398.0,2.2737126]
[1760013655285,2.27340098,4398.7,4398.1,0.6336]
[1760013655441,2.27340098,4398.7,4398.0,0.6336]
[1760013655639,0.02639702,4398.9,4397.9,0.6336]
[1760013655853,0.02639702,4398.9,4398.1,0.6336]
[1760013656079,0.2278,4400.1,4398.3,0.6336]
[1760013656277,0.2278,4400.1,4398.6,0.6336]
[1760013656278,0.698,4399.9,4398.6,0.6336]
[1760013656597,2.27283058,4399.8,4398.8,0.6336]
[1760013656790,0.01,4399.9,4398.9,0.02273295]
[1760013656991,0.01,4399.9,4399.1,0.6336]
[1760013657212,0.01,4399.9,4399.3,0.6336]
[1760013657511,2.27293446,4399.6,4399.3,0.6336]
[1760013657808,0.01,4399.9,4399.3,0.6336]
[1760013657988,0.01,4399.9,4399.2,5.607]
[1760013657989,2.72888556,4399.5,4399.4,7.1316]
[1760013658177,2.27298556,4399.5,4399.4,7.1316]
[1760013658375,2.27314057,4399.2,4399.1,0.1136]
[1760013658705,0.46595467,4399.5,4398.7,0.094]
[1760013658863,2.27334727,4398.8,4398.7,0.7276]
[1760013659060,2.72924727,4398.8,4398.7,3.6346]
[1760013659691,0.002,4398.9,4398.7,3.6346]
[1760013659692,0.002,4398.9,4398.8,0.6336]
[1760013660103,2.73119559,4398.9,4398.8,0.6336]
[1760013660278,2.73119559,4398.9,4397.8,0.288]
[1760013660279,2.27369954,4398.2,4397.8,0.001]
[1760013660474,2.27339646,4398.8,4397.8,0.001]
[1760013660681,2.27369947,4398.2,4397.9,8.333]
[1760013660898,2.2736708,4398.2,4398.0,0.6336]
[1760013661075,2.27345416,4398.6,4398.0,0.6563376]
[1760013661276,2.27530889,4398.9,4398.0,1.78275346]
[1760013661277,0.002,4398.9,4398.0,1.78275346]
[1760013661500,2.27345957,4398.6,4398.0,1.78275346]
[1760013661797,2.27529936,4398.9,4398.0,1.78275346]
[1760013661798,0.002,4398.9,4398.2,0.6336]
[1760013661997,2.27534104,4398.9,4398.4,0.6336]
[1760013662206,2.27339494,4398.8,4398.6,0.6336]
[1760013662368,0.002,4398.9,4398.6,0.6563345]
[1760013663192,2.27337477,4398.8,4398.6,0.6336]
[1760013663381,2.27533335,4398.9,4398.6,0.6336]
[1760013663589,2.27533335,4398.9,4398.6,0.6563345]
[1760013663796,2.27533652,4398.9,4398.6,0.6336]
[1760013664004,2.27533652,4398.9,4398.6,0.6563345]
[1760013664207,0.002,4398.9,4398.6,0.6563345]
[1760013664374,0.002,4398.9,4398.8,0.6336]
[1760013664703,2.27529559,4398.9,4398.7,0.6336]
[1760013664897,0.002,4398.9,4398.8,9.4966]
[1760013665215,2.27529559,4398.9,4398.8,9.4966]
[1760013665722,2.72884481,4399.6,4398.9,0.6336]
[1760013665869,0.01,4399.9,4398.9,0.6336]
[1760013666072,0.4559,4399.8,4399.0,1.1896]
[1760013666310,0.01,4399.9,4399.0,1.21233243]
[1760013666510,0.01,4399.9,4399.0,1.1896]
[1760013666674,2.27298847,4399.5,4399.0,1.1896]
[1760013666985,2.27294226,4399.6,4399.0,1.4766]
[1760013667316,0.0092,4399.9,4399.1,0.02273192]
[1760013667605,0.0092,4399.9,4399.0,1.4766]
[1760013667606,2.27310707,4399.3,4399.0,1.1896]
[1760013667809,0.0092,4399.9,4399.2,0.6336]
[1760013667983,2.27298556,4399.5,4399.4,0.6336]
[1760013668586,2.2732354,4399.1,4398.9,0.6336]
[1760013668795,0.5695,4399.5,4399.4,0.6336]
[1760013668796,2.38658556,4399.5,4399.4,0.6336]
[1760013668999,0.1136,4399.5,4399.4,0.6336]
[1760013669204,0.0092,4399.9,4399.5,0.6336]
[1760013669415,0.0092,4399.9,4399.7,0.6336]
[1760013669580,0.0092,4399.9,4399.8,0.1363283]
[1760013669908,0.0092,4399.9,4399.8,3.32975888]
[1760013670310,0.0092,4399.9,4399.8,1.0342]
[1760013670477,0.0092,4399.9,4399.8,4.28743855]
[1760013670678,0.0092,4399.9,4399.8,2.01460797]
[1760013671296,0.0092,4399.9,4399.8,4.28743855]
[1760013671689,0.0092,4399.9,4399.8,2.01460797]
[1760013672296,0.0092,4399.9,4399.8,2.03733627]
[1760013672492,0.0092,4399.9,4399.8,4.31016685]
[1760013672814,0.0092,4399.9,4399.8,6.23016685]
[1760013673015,0.0092,4399.9,4399.8,6.20743855]
[1760013673933,0.0092,4399.9,4399.8,12.70043855]
[1760013674136,0.0092,4399.9,4399.8,15.06443855]
[1760013675331,0.0092,4399.9,4399.8,12.79160797]
[1760013675530,0.0092,4399.9,4399.8,15.06443855]
[1760013675732,0.0092,4399.9,4399.8,3.93460797]
[1760013675935,0.0092,4399.9,4399.8,6.20743855]
[1760013676109,0.0092,4399.9,4399.8,15.06243855]
[1760013676441,0.003,4400.5,4400.3,0.6336]
[1760013676637,0.003,4400.5,4400.2,2.27258819]
[1760013676638,0.003,4400.5,4400.4,7.4413252]
[1760013676934,0.003,4400.5,4400.4,7.4186]
[1760013677437,0.003,4400.5,4400.4,7.7056]
[1760013679325,2.28226846,4400.9,4400.5,0.6336]
[1760013679326,0.01,4400.9,4400.5,0.6336]
[1760013679545,0.01,4400.9,4400.8,9.104608]
[1760013679742,0.01,4400.9,4400.8,11.31791412]
[1760013680054,0.01,4400.9,4400.8,29.43623512]
[1760013680257,0.01,4400.9,4400.8,9.73336612]
[1760013680415,0.01,4400.9,4400.8,24.76172984]
[1760013680620,0.01,4400.9,4400.8,28.53906884]
[1760013681639,0.01,4400.9,4400.8,42.36216284]
[1760013681952,0.01,4400.9,4400.8,30.11519984]
[1760013682152,0.01,4400.9,4400.8,29.78257184]
[1760013682320,0.01,4400.9,4400.8,8.98693584]
[1760013682522,0.01,4400.9,4400.8,26.80540484]
[1760013682721,0.01,4400.9,4400.8,26.85140484]
[1760013683122,0.01,4400.9,4400.8,24.76372984]
[1760013683352,0.01,4400.9,4400.8,12.94672984]
[1760013683556,0.01,4400.9,4400.8,27.66247884]
[1760013683753,0.01,4400.9,4400.8,22.49141572]
[1760013683930,0.01,4400.9,4400.8,24.76372984]
[1760013684255,0.01,4401.9,4401.1,0.6336]
[1760013684422,2.28175745,4401.9,4401.3,0.6336]
[1760013684624,2.28175745,4401.9,4401.5,0.6336]
[1760013684955,0.01,4401.9,4401.7,0.6336]
[1760013685155,0.01,4401.9,4401.8,9.36231797]
[1760013685453,0.01,4401.9,4401.8,9.3506]
[1760013685657,0.01,4401.9,4401.8,9.99866]
[1760013685957,0.01,4401.9,4401.8,11.4266]
[1760013686461,0.01,4401.9,4401.8,9.3506]
[1760013686662,0.01,4401.9,4401.8,11.7136]
[1760013688542,0.0092,4401.9,4401.8,11.7136]
[1760013688947,2.37136699,4402.7,4401.8,11.7136]
[1760013688948,0.1,4402.7,4402.1,30.0]
[1760013689170,0.01,4403.9,4403.4,0.6336]
[1760013689341,0.01,4403.9,4403.6,2.5536]
[1760013689671,0.01,4405.9,4404.0,0.6336]
[1760013689960,0.0528,4405.0,4404.9,16.10304909]
[1760013690163,0.01,4405.9,4404.9,16.10304909]
[1760013690164,0.01,4405.9,4404.9,15.909202]
[1760013690323,0.9984,4407.7,4405.8,0.6336]
[1760013690524,0.9984,4407.7,4406.1,0.6336]
[1760013690755,0.9984,4407.7,4406.3,0.6336]
[1760013690981,0.9984,4407.7,4406.5,1.92]
[1760013691127,0.9984,4407.7,4405.3,4.253]
[1760013691128,0.9984,4407.7,4406.7,0.6336]
[1760013691331,0.9984,4407.7,4406.6,4.897]
[1760013691332,0.9984,4407.7,4406.8,0.6336]
[1760013691638,0.9984,4407.7,4406.8,7.71882029]
[1760013691836,0.9984,4407.7,4406.9,4.8227688]
[1760013691837,19.46,4407.0,4406.9,4.8227688]
[1760013692042,19.46,4407.0,4406.9,41.903219]
[1760013692259,18.77927408,4407.0,4406.9,21.4536]
[1760013692459,18.77927408,4407.0,4406.9,36.1364338]
[1760013692644,18.77927408,4407.0,4406.9,33.867265]
[1760013692971,18.77927408,4407.0,4406.9,42.80916625]
[1760013693336,18.77927408,4407.0,4406.9,42.09939625]
[1760013693667,18.77927408,4407.0,4406.9,37.69034625]
[1760013693845,18.77927408,4407.0,4406.9,42.29203625]
[1760013694045,18.77927408,4407.0,4406.9,37.72286825]
[1760013694267,18.77927408,4407.0,4406.9,14.38169945]
[1760013694451,18.77927408,4407.0,4406.9,19.0196]
[1760013694758,18.77927408,4407.0,4406.9,9.447]
[1760013694930,18.77927408,4407.0,4406.9,19.0186]
[1760013695133,18.77927408,4407.0,4406.9,0.6336]
[1760013695331,18.77927408,4407.0,4406.9,4.3606]
[1760013695542,18.77927408,4407.0,4406.9,0.6336]
[1760013695740,18.77927408,4407.0,4406.9,9.5706]
[1760013695943,18.77927408,4407.0,4406.9,11.03126]
[1760013696130,18.77927408,4407.0,4406.9,20.9356]
[1760013696334,18.77927408,4407.0,4406.9,9.5696]
[1760013696558,18.77927408,4407.0,4406.9,11.4896]
[1760013696970,18.77927408,4407.0,4406.9,9.5696]
[1760013697462,18.77927408,4407.0,4406.9,13.7587688]
[1760013697660,18.77927408,4407.0,4406.9,16.01053925]
[1760013697842,18.77927408,4407.0,4406.9,13.74137045]
[1760013698045,18.77927408,4407.0,4406.9,2.5536]
[1760013698378,18.77927408,4407.0,4406.9,18.5696]
[1760013698662,18.77927408,4407.0,4406.9,20.9306]
[1760013699182,18.77927408,4407.0,4406.9,39.9448388]
[1760013699476,18.22927408,4407.0,4406.9,39.9448388]
[1760013699634,18.22927408,4407.0,4406.9,42.19660925]
[1760013699956,18.22927408,4407.0,4406.9,42.30940925]
[1760013700160,18.22927408,4407.0,4406.9,25.56433925]
[1760013700332,0.9984,4407.7,4407.6,2.90240842]
[1760013700540,0.01,4407.9,4407.8,4.82230547]
[1760013700769,0.01,4407.9,4407.8,43.75630547]
[1760013700941,0.01,4407.9,4407.8,29.95432547]
[1760013701134,0.01,4407.9,4407.8,33.12472747]
[1760013701334,0.01,4407.9,4407.8,34.82230547]
[1760013701531,0.01,4408.9,4408.1,2.90212717]